{"text_format":"3","workbook":"xlsx","n_sheets":2,"sheets":["Start","Tjenestefaktura"],"not_rendered":{"images":1,"defined_names":1},"read":"whole","date_system":"1900"}

{"sheet":"Start","index":0,"n_rows":8,"n_cols":2,"rows_kept":8}
[null,"OM DENNE SKABELON"]
[null,"Brug denne skabelon til at oprette en Tjenestefaktura."]
[null,"Udfyld med oplysninger om fakturanummer, dato, firmanavn, adresse, slogan og fakturer til."]
[null,"Indtast oplysninger i tabeller."]
[null,"Beløb i alt beregnes automatisk."]
[null,"Note: "]
[null,"Yderligere vejledning findes i kolonne A i regnearket TJENESTEFAKTURA. Denne sms-besked er skjult med vilje. Du kan fjerne tekst ved at markere kolonne A og derefter vælge Slet. For ikke længere at skjule tekst skal du markere kolonne A og derefter ændre skriftfarven."]
[null,"Hvis du vil vide mere om tabeller, skal du trykke på SKIFT og derefter F10, mens du er i en tabel, vælge indstillingen TABEL og derefter vælge ALTERNATIV TEKST."]

{"sheet":"Tjenestefaktura","index":1,"n_rows":44,"n_cols":5,"rows_kept":44,"merged":[[0,1,0,2],[0,3,0,4],[2,1,2,3],[3,1,3,3],[4,1,4,2],[5,1,5,2],[6,1,6,2],[7,1,7,2],[41,1,41,2],[41,3,41,4],[43,1,43,4]]}
[null,"Pladsholder til logo er i denne celle.",null,"FAKTURA"]
[]
[null,"Dit firmanavn"]
[null,"Dit firmaslogan"]
[null,"Adresse",null,"FAKTURANUMMER","Nr."]
[null,"By, postnummer",null,"DATO ",{"$f":"TODAY()","v":"2022-04-28"}]
[null,"Telefon Fax",null,"KUNDE-ID ","Id"]
[null,"Mailadresse"]
[null,"TIL","Navn"]
[null,null,"Virksomhedsnavn"]
[null,null,"Gadeadresse"]
[null,null,"By, postnummer"]
[null,null,"Telefon"]
[null,"SÆLGER","JOB","BETALINGSBETINGELSER","FORFALDSDATO"]
[{"$nulls":3},"Betaling ved modtagelse"]
[]
[null,"ANTAL","BESKRIVELSE","ENHEDSPRIS","LINJETOTAL"]
[{"$nulls":4},{"$f":"IF(SUM(B18)>0,SUM(B18*Tjenestefaktura!$D18),\"\")","v":""}]
[{"$nulls":4},{"$f":"IF(SUM(B19)>0,SUM(B19*Tjenestefaktura!$D19),\"\")","v":""}]
[{"$nulls":4},{"$f":"IF(SUM(B20)>0,SUM(B20*Tjenestefaktura!$D20),\"\")","v":""}]
[{"$nulls":4},{"$f":"IF(SUM(B21)>0,SUM(B21*Tjenestefaktura!$D21),\"\")","v":""}]
[{"$nulls":4},{"$f":"IF(SUM(B22)>0,SUM(B22*Tjenestefaktura!$D22),\"\")","v":""}]
[{"$nulls":4},{"$f":"IF(SUM(B23)>0,SUM(B23*Tjenestefaktura!$D23),\"\")","v":""}]
[{"$nulls":4},{"$f":"IF(SUM(B24)>0,SUM(B24*Tjenestefaktura!$D24),\"\")","v":""}]
[{"$nulls":4},{"$f":"IF(SUM(B25)>0,SUM(B25*Tjenestefaktura!$D25),\"\")","v":""}]
[{"$nulls":4},{"$f":"IF(SUM(B26)>0,SUM(B26*Tjenestefaktura!$D26),\"\")","v":""}]
[{"$nulls":4},{"$f":"IF(SUM(B27)>0,SUM(B27*Tjenestefaktura!$D27),\"\")","v":""}]
[{"$nulls":4},{"$f":"IF(SUM(B28)>0,SUM(B28*Tjenestefaktura!$D28),\"\")","v":""}]
[{"$nulls":4},{"$f":"IF(SUM(B29)>0,SUM(B29*Tjenestefaktura!$D29),\"\")","v":""}]
[{"$nulls":4},{"$f":"IF(SUM(B30)>0,SUM(B30*Tjenestefaktura!$D30),\"\")","v":""}]
[{"$nulls":4},{"$f":"IF(SUM(B31)>0,SUM(B31*Tjenestefaktura!$D31),\"\")","v":""}]
[{"$nulls":4},{"$f":"IF(SUM(B32)>0,SUM(B32*Tjenestefaktura!$D32),\"\")","v":""}]
[{"$nulls":4},{"$f":"IF(SUM(B33)>0,SUM(B33*Tjenestefaktura!$D33),\"\")","v":""}]
[{"$nulls":4},{"$f":"IF(SUM(B34)>0,SUM(B34*Tjenestefaktura!$D34),\"\")","v":""}]
[{"$nulls":4},{"$f":"IF(SUM(B35)>0,SUM(B35*Tjenestefaktura!$D35),\"\")","v":""}]
[{"$nulls":4},{"$f":"IF(SUM(B36)>0,SUM(B36*Tjenestefaktura!$D36),\"\")","v":""}]
[{"$nulls":4},{"$f":"IF(SUM(B37)>0,SUM(B37*Tjenestefaktura!$D37),\"\")","v":""}]
[{"$nulls":3},"SUBTOTAL",{"$f":"IF(SUM(E18:E37)>0,SUM(E18:E37),\"\")","v":""}]
[{"$nulls":3},"MOMS"]
[{"$nulls":3},"Total",{"$f":"IF(SUM(E38)>0,SUM((E38*E39)+E38),\"\")","v":""}]
[]
[null,"Udsted alle checks til",null,{"$f":"B3","v":"Dit firmanavn"}]
[]
[null,"TAK, FORDI DU HANDLEDE HOS OS!"]